fUST/lending_fUST_20250730
["ID","MTS","AMOUNT","RATE_DAILY","PERIOD"]
[376104515,1753863740064,-460.0,0.00018844,2]
[376104516,1753863740086,-460.0,0.00018844,2]
[376104517,1753863740107,-460.0,0.00018844,2]
[376104518,1753863740128,-460.0,0.00018844,2]
[376104519,1753863740150,-460.0,0.00018844,2]
[376104520,1753863740174,-460.0,0.00018844,2]
[376104521,1753863740197,-460.0,0.00018844,2]
[376104522,1753863740218,-460.0,0.00018844,2]
[376104523,1753863740241,-460.0,0.00018844,2]
[376104524,1753863740263,-461.35657795,0.00018844,2]
[376104525,1753863740284,-452.67279339,0.00018844,2]
[376104526,1753863740308,-460.0,0.00018844,2]
[376104527,1753863740333,-458.3269398,0.00018844,2]
[376104528,1753863804622,-460.0,0.00018843,2]
[376104529,1753863804644,-461.15302071,0.00018843,2]
[376104530,1753863804665,-460.0,0.00018843,2]
[376104531,1753863804687,-519.94809409,0.00018843,2]
[376104532,1753863804708,-460.0,0.00018843,2]
[376104533,1753863804731,-460.0,0.00018843,2]
[376104534,1753863804752,-460.0,0.00018843,2]
[376104535,1753863804776,-460.0,0.00018843,2]
[376104536,1753863804802,-460.0,0.00018843,2]
[376104537,1753863804825,-460.0,0.00018843,2]
[376104538,1753863804846,-460.0,0.00018843,2]
[376104539,1753863804868,-569.0,0.00018843,2]
[376104540,1753863804890,-309.8988852,0.00018843,2]
[376104541,1753863841394,267.71241275,0.00018744,2]
[376104542,1753863909615,200.644231,0.00013699,2]
[376104544,1753863992636,2319.20958639,0.00018728,2]
[376104550,1753864051658,234.24836113,0.00018743,2]
[376104551,1753864072153,5952.92495127,0.00018,2]
[376104558,1753864106737,254.01263245,0.000176,2]
[376104559,1753864119155,1278.47704481,0.00018,2]
[376104608,1753864232419,-300.0,0.0001884,2]
[376104610,1753864232428,-421.25152912,0.00018841,2]
[376104624,1753864232530,-38.74847088,0.00018841,2]
[376104627,1753864232540,-460.0,0.00018841,2]
[376104630,1753864232549,-460.0,0.00018841,2]
[376104632,1753864232559,-461.85808922,0.00018841,2]
[376104634,1753864232568,-460.0,0.00018841,2]
[376104636,1753864232579,-460.0,0.00018841,2]
[376104638,1753864232589,-460.0,0.00018841,2]
[376104640,1753864232599,-522.16,0.00018841,2]
[376104642,1753864232608,-460.0,0.00018841,2]
[376104644,1753864232618,-460.0,0.00018842,2]
[376104646,1753864232627,-460.0,0.00018842,2]
[376104648,1753864232636,-1000.0,0.00018842,2]
[376104650,1753864232645,-460.0,0.00018842,2]
[376104652,1753864232654,-460.0,0.00018842,2]
[376104654,1753864232664,-460.0,0.00018842,2]
[376104656,1753864232673,-467.6280778,0.00018842,2]
[376104658,1753864232682,-460.0,0.00018842,2]
[376104660,1753864232691,-460.50473411,0.00018842,2]
[376104662,1753864232701,-460.0,0.00018842,2]
[376104664,1753864232710,-462.09058776,0.00018842,2]
[376104666,1753864232719,-460.0,0.00018842,2]
[376104668,1753864232728,-460.0,0.00018842,2]
[376104670,1753864232738,-460.0,0.00018842,2]
[376104672,1753864232747,-460.0,0.00018842,2]
[376104674,1753864232757,-461.36043097,0.00018842,2]
[376104676,1753864232767,-460.0,0.00018842,2]
[376104678,1753864232776,-460.0,0.00018842,2]
[376104680,1753864232785,-463.1677653,0.00018842,2]
[376104682,1753864232795,-460.0,0.00018842,2]
[376104684,1753864232804,-467.79415245,0.00018842,2]
[376104686,1753864232814,-460.0,0.00018842,2]
[376104688,1753864232825,-460.0,0.00018842,2]
[376104690,1753864232834,-460.0,0.00018842,2]
[376104692,1753864232844,-197.43037664,0.00018842,2]
[376104694,1753864232853,-460.0,0.00018842,2]
[376104696,1753864232863,-460.0,0.00018842,2]
[376104698,1753864232873,-319.49413654,0.00018842,2]
[376104700,1753864232882,-460.0,0.00018842,2]
[376104702,1753864232892,-708.17,0.00018842,2]
[376104704,1753864232901,-150.1011148,0.00018843,2]
[376104706,1753864232910,-460.0,0.00018843,2]
[376104708,1753864232920,-460.0,0.00018843,2]
[376104710,1753864232930,-460.0,0.00018843,2]
[376104712,1753864232939,-460.0,0.00018843,2]
[376104714,1753864232949,-460.0,0.00018843,2]
[376104716,1753864232958,-460.0,0.00018843,2]
[376104718,1753864232968,-155.91728636,0.00018843,2]
[376104720,1753864232977,-460.0,0.00018843,2]
[376104722,1753864232987,-460.0,0.00018843,2]
[376104724,1753864232996,-460.0,0.00018843,2]
[376104726,1753864233006,-460.0,0.00018843,2]
[376104728,1753864233016,-460.0,0.00018843,2]
[376104731,1753864233027,-460.0,0.00018843,2]
[376104733,1753864233038,-460.0,0.00018843,2]
[376104735,1753864233048,-460.0,0.00018843,2]
[376104737,1753864233058,-460.0,0.00018843,2]
[376104739,1753864233071,-460.08426414,0.00018843,2]
[376104740,1753864233084,-460.0,0.00018843,2]
[376104743,1753864233095,-460.0,0.00018843,2]
[376104745,1753864233107,-500.0,0.00018843,2]
[376104747,1753864233130,-500.0,0.00018843,2]
[376104749,1753864233142,-460.0,0.00018843,2]
[376104750,1753864233153,-460.0,0.00018843,2]
[376104752,1753864233164,-460.0,0.00018843,2]
[376104754,1753864233174,-1565.72,0.00018843,2]
[376104757,1753864233184,-460.0,0.00018843,2]
[376104759,1753864233193,-460.0,0.00018843,2]
[376104761,1753864233203,-460.0,0.00018843,2]
[376104763,1753864233212,-464.07346005,0.00018843,2]
[376104764,1753864233221,-460.0,0.00018843,2]
[376104766,1753864233231,-512.57,0.00018843,2]
[376104769,1753864233241,-460.0,0.00018843,2]
[376104770,1753864233251,-512.4,0.00018843,2]
[376104773,1753864233261,-379.48429492,0.00018843,2]
[376104775,1753864233271,-460.0,0.00018843,2]
[376104777,1753864233282,-460.0,0.00018843,2]
[376104779,1753864233292,-1115.58,0.00018843,2]
[376104781,1753864233302,-639.3,0.00018843,2]
[376104783,1753864233312,-187.92,0.00018843,2]
[376104785,1753864233322,-460.0,0.00018843,2]
[376104787,1753864233334,-460.0,0.00018843,2]
[376104788,1753864233344,-460.0,0.00018843,2]
[376104791,1753864233354,-460.0,0.00018843,2]
[376104793,1753864233364,-806.27,0.00018843,2]
[376104795,1753864233373,-460.0,0.00018843,2]
[376104796,1753864233382,-429.51,0.00018843,2]
[376104798,1753864233392,-459.24784935,0.00018843,2]
[376104801,1753864233402,-460.0,0.00018843,2]
[376104802,1753864233413,-460.0,0.00018843,2]
[376104805,1753864233422,-352.5228111,0.00018843,2]
[376104806,1753864233432,-460.0,0.00018843,2]
[376104809,1753864233443,-460.0,0.00018843,2]
[376104811,1753864233452,-177.78,0.00018843,2]
[376104812,1753864233462,-460.92849877,0.00018843,2]
[376104815,1753864233472,-460.0,0.00018843,2]
[376104816,1753864233482,-460.0,0.00018843,2]
[376104818,1753864233492,-500.0,0.00018843,2]
[376104820,1753864233504,-500.0,0.00018843,2]
[376104822,1753864233514,-460.0,0.00018843,2]
[376104824,1753864233524,-460.0,0.00018843,2]
[376104826,1753864233533,-460.43472085,0.00018843,2]
[376104828,1753864233544,-460.0,0.00018843,2]
[376104830,1753864233554,-460.0,0.00018843,2]
[376104832,1753864233563,-460.0,0.00018843,2]
[376104834,1753864233578,-460.0,0.00018843,2]
[376104837,1753864233588,-1.6730602,0.00018844,2]
[376104839,1753864233598,-155.0,0.00018844,2]
[376104841,1753864233608,-460.0,0.00018844,2]
[376104842,1753864233618,-460.0,0.00018844,2]
[376104845,1753864233627,-460.0,0.00018844,2]
[376104847,1753864233637,-460.0,0.00018844,2]
[376104849,1753864233647,-460.0,0.00018844,2]
[376104851,1753864233658,-460.0,0.00018844,2]
[376104853,1753864233667,-460.0,0.00018844,2]
[376104855,1753864233677,-460.0,0.00018844,2]
[376104857,1753864233686,-460.0,0.00018844,2]
[376104859,1753864233695,-460.0,0.00018844,2]
[376104860,1753864233706,-460.0,0.00018844,2]
[376104862,1753864233716,-460.0,0.00018844,2]
[376104865,1753864233726,-460.0,0.00018844,2]
[376104867,1753864233736,-460.0,0.00018844,2]
[376104868,1753864233745,-460.0,0.00018844,2]
[376104870,1753864233755,-571.17367652,0.00018844,2]
[376104872,1753864233766,-460.0,0.00018844,2]
[376104875,1753864233776,-460.0,0.00018844,2]
[376104876,1753864233786,-460.0,0.00018844,2]
[376104878,1753864233796,-150.67033589,0.00018844,2]
[376104880,1753864233805,-460.0,0.00018844,2]
[376104882,1753864233815,-460.0,0.00018844,2]
[376104884,1753864233825,-460.0,0.00018844,2]
[376104886,1753864233838,-460.0,0.00018844,2]
[376104888,1753864233848,-460.0,0.00018844,2]
[376104890,1753864233859,-460.0,0.00018844,2]
[376104893,1753864233869,-178.62509213,0.00018844,2]
[376104895,1753864233880,-460.0,0.00018844,2]
[376104897,1753864233890,-460.0,0.00018844,2]
[376104899,1753864233900,-461.198791,0.00018844,2]
[376104900,1753864233911,-460.0,0.00018844,2]
[376104902,1753864233920,-460.0,0.00018844,2]
[376104904,1753864233930,-460.0,0.00018844,2]
[376104906,1753864233940,-433.79102833,0.00018844,2]
[376104908,1753864233951,-460.0,0.00018844,2]
[376104910,1753864233960,-460.0,0.00018844,2]
[376104912,1753864233969,-460.0,0.00018844,2]
[376104914,1753864233979,-460.0,0.00018844,2]
[376104916,1753864233987,-460.0,0.00018844,2]
[376104918,1753864233996,-460.0,0.00018844,2]
[376104920,1753864234006,-460.0,0.00018844,2]
[376104922,1753864234015,-460.0,0.00018844,2]
[376104924,1753864234025,-461.17912068,0.00018844,2]
[376104926,1753864234035,-259.19552708,0.00018844,2]
[376104928,1753864234045,-460.0,0.00018844,2]
[376104930,1753864234054,-460.0,0.00018844,2]
[376104932,1753864234064,-460.0,0.00018844,2]
[376104934,1753864234074,-556.51838889,0.00018844,2]
[376104936,1753864234086,-460.0,0.00018844,2]
[376104938,1753864234095,-460.0,0.00018844,2]
[376104940,1753864234105,-463.07107532,0.00018844,2]
[376104942,1753864234115,-460.0,0.00018844,2]
[376104944,1753864234125,-460.0,0.00018844,2]
[376104947,1753864234136,-197.66538933,0.00018844,2]
[376104949,1753864234146,-460.0,0.00018844,2]
[376104950,1753864234156,-460.0,0.00018844,2]
[376104952,1753864234166,-460.0,0.00018844,2]
[376104954,1753864234176,-460.39957395,0.00018844,2]
[376104956,1753864234185,-460.0,0.00018844,2]
[376104958,1753864234195,-460.0,0.00018844,2]
[376104960,1753864234205,-460.0,0.00018844,2]
[376104962,1753864234215,-460.0,0.00018844,2]
[376104964,1753864234224,-500.0,0.00018844,2]
[376104966,1753864234233,-413.65156676,0.00018844,2]
[376104968,1753864234243,-462.67438473,0.00018844,2]
[376104970,1753864234252,-460.0,0.00018844,2]
[376104972,1753864234262,-460.0,0.00018844,2]
[376104974,1753864234272,-460.0,0.00018844,2]
[376104976,1753864234281,-460.0,0.00018844,2]
[376104978,1753864234291,-460.0,0.00018844,2]
[376104980,1753864234300,-460.0,0.00018844,2]
[376104982,1753864234310,-460.0,0.00018844,2]
[376104984,1753864234319,-460.0,0.00018844,2]
[376104986,1753864234331,-460.0,0.00018844,2]
[376104988,1753864234340,-460.0,0.00018844,2]
[376104990,1753864234349,-460.0,0.00018844,2]
[376104992,1753864234359,-461.5100501,0.00018844,2]
[376104994,1753864234368,-460.0,0.00018844,2]
[376104996,1753864234377,-460.0,0.00018844,2]
[376104998,1753864234387,-460.0,0.00018844,2]
[376105000,1753864234396,-460.0,0.00018844,2]
[376105002,1753864234405,-460.0,0.00018844,2]
[376105004,1753864234415,-500.0,0.00018844,2]
[376105006,1753864234425,-500.0,0.00018844,2]
[376105008,1753864234434,-500.0,0.00018844,2]
[376105011,1753864234444,-460.83550551,0.00018844,2]
[376105013,1753864234453,-267.23853929,0.00018844,2]
[376105014,1753864234463,-460.0,0.00018844,2]
[376105017,1753864234473,-440.28117371,0.00018844,2]
[376105019,1753864234482,-460.0,0.00018844,2]
[376105020,1753864234493,-460.0,0.00018844,2]
[376105023,1753864234505,-461.25670804,0.00018844,2]
[376105025,1753864234514,-460.0,0.00018844,2]
[376105027,1753864234523,-500.0,0.00018844,2]
[376105029,1753864234535,-500.0,0.00018844,2]
[376105030,1753864234544,-500.0,0.00018844,2]
[376105033,1753864234554,-460.0,0.00018844,2]
[376105034,1753864234563,-460.0,0.00018844,2]
[376105036,1753864234575,-460.0,0.00018844,2]
[376105038,1753864234585,-460.0,0.00018844,2]
[376105040,1753864234594,-460.0,0.00018844,2]
[376105042,1753864234604,-460.0,0.00018844,2]
[376105044,1753864234613,-460.0,0.00018844,2]
[376105046,1753864234623,-460.0,0.00018844,2]
[376105048,1753864234632,-460.0,0.00018844,2]
[376105050,1753864234641,-460.0,0.00018844,2]
[376105052,1753864234651,-460.0,0.00018844,2]
[376105054,1753864234661,-460.0,0.00018844,2]
[376105056,1753864234671,-205.15561979,0.00018844,2]
[376105058,1753864234680,-460.52698104,0.00018844,2]
[376105060,1753864234690,-460.0,0.00018844,2]
[376105062,1753864234699,-460.0,0.00018844,2]
[376105064,1753864234708,-460.0,0.00018844,2]
[376105066,1753864234718,-460.0,0.00018844,2]
[376105068,1753864234727,-463.58698442,0.00018844,2]
[376105070,1753864234736,-510.4031454,0.00018844,2]
[376105072,1753864234746,-460.0,0.00018844,2]
[376105074,1753864234755,-460.0,0.00018844,2]
[376105076,1753864234764,-460.0,0.00018844,2]
[376105078,1753864234774,-460.0,0.00018844,2]
[376105080,1753864234784,-460.0,0.00018844,2]
[376105082,1753864234794,-460.0,0.00018844,2]
[376105084,1753864234805,-460.0,0.00018844,2]
[376105101,1753864234961,-460.0,0.00018844,2]
[376105103,1753864234972,-460.31715597,0.00018844,2]
[376105105,1753864234981,-460.0,0.00018844,2]
[376105107,1753864234990,-460.0,0.00018844,2]
[376105109,1753864235001,-460.0,0.00018844,2]
[376105111,1753864235011,-366.95470257,0.00018844,2]
[376105113,1753864235019,-460.0,0.00018844,2]
[376105114,1753864235028,-460.0,0.00018844,2]
[376105115,1753864235036,-460.0,0.00018844,2]
[376105116,1753864235045,-460.0,0.00018844,2]
[376105117,1753864235054,-460.0,0.00018844,2]
[376105118,1753864235063,-460.0,0.00018844,2]
[376105119,1753864235071,-460.0,0.00018844,2]
[376105120,1753864235082,-460.0,0.00018844,2]
[376105121,1753864235091,-460.0,0.00018844,2]
[376105122,1753864235100,-460.0,0.00018844,2]
[376105123,1753864235108,-460.0,0.00018844,2]
[376105124,1753864235117,-460.0,0.00018844,2]
[376105125,1753864235125,-460.0,0.00018844,2]
[376105126,1753864235133,-460.0,0.00018844,2]
[376105127,1753864235143,-588.79371624,0.00018844,2]
[376105128,1753864235152,-460.0,0.00018844,2]
[376105129,1753864235160,-460.0,0.00018844,2]
[376105130,1753864235169,-460.0,0.00018844,2]
[376105131,1753864235178,-460.0,0.00018844,2]
[376105132,1753864235187,-460.0,0.00018844,2]
[376105133,1753864235195,-460.0,0.00018844,2]
[376105134,1753864235202,-460.0,0.00018844,2]
[376105135,1753864235209,-460.0,0.00018844,2]
[376105136,1753864235216,-460.0,0.00018844,2]
[376105138,1753864235225,-460.0,0.00018844,2]
[376105140,1753864235232,-460.0,0.00018844,2]
[376105142,1753864235239,-460.0,0.00018844,2]
[376105144,1753864235248,-460.0,0.00018844,2]
[376105146,1753864235255,-460.0,0.00018844,2]
[376105148,1753864235263,-465.04623088,0.00018844,2]
[376105150,1753864235271,-460.0,0.00018844,2]
[376105151,1753864235278,-460.0,0.00018844,2]
[376105153,1753864235285,-460.0,0.00018844,2]
[376105155,1753864235293,-460.0,0.00018844,2]
[376105157,1753864235300,-460.0,0.00018844,2]
[376105159,1753864235308,-460.0,0.00018844,2]
[376105161,1753864235316,-500.0,0.00018844,2]
[376105163,1753864235323,-460.0,0.00018844,2]
[376105166,1753864235334,-460.0,0.00018844,2]
[376105168,1753864235342,-500.0,0.00018844,2]
[376105169,1753864235351,-627.14375399,0.00018844,2]
[376105171,1753864235360,-460.0,0.00018844,2]
[376105174,1753864235369,-463.87890063,0.00018845,2]
[376105176,1753864235377,-461.30853,0.00018845,2]
[376105178,1753864235386,-460.0,0.00018845,2]
[376105180,1753864235393,-460.0,0.00018845,2]
[376105182,1753864235400,-461.19285109,0.00018845,2]
[376105184,1753864235410,-460.0,0.00018845,2]
[376105186,1753864235418,-460.0,0.00018845,2]
[376105188,1753864235426,-460.0,0.00018845,2]
[376105190,1753864235435,-221.13012276,0.00018845,2]
[376105192,1753864235443,-460.0,0.00018845,2]
[376105194,1753864235451,-494.01691583,0.00018845,2]
[376105196,1753864235460,-460.0,0.00018845,2]
[376105197,1753864235467,-460.0,0.00018845,2]
[376105200,1753864235477,-460.0,0.00018845,2]
[376105201,1753864235485,-460.0,0.00018845,2]
[376105204,1753864235495,-460.0,0.00018845,2]
[376105206,1753864235506,-460.0,0.00018845,2]
[376105208,1753864235515,-460.0,0.00018845,2]
[376105210,1753864235525,-460.0,0.00018845,2]
[376105212,1753864235534,-460.0,0.00018845,2]
[376105213,1753864235544,-460.0,0.00018845,2]
[376105216,1753864235554,-460.0,0.00018845,2]
[376105218,1753864235564,-460.0,0.00018845,2]
[376105220,1753864235575,-460.0,0.00018845,2]
[376105222,1753864235586,-460.0,0.00018845,2]
[376105224,1753864235595,-460.0,0.00018845,2]
[376105226,1753864235605,-460.0,0.00018845,2]
[376105228,1753864235614,-460.0,0.00018845,2]
[376105230,1753864235624,-460.0,0.00018845,2]
[376105232,1753864235634,-460.0,0.00018845,2]
[376105234,1753864235643,-460.0,0.00018845,2]
[376105236,1753864235653,-460.0,0.00018845,2]
[376105238,1753864235663,-460.0,0.00018845,2]
[376105240,1753864235672,-460.0,0.00018845,2]
[376105242,1753864235681,-460.0,0.00018845,2]
[376105244,1753864235691,-460.0,0.00018845,2]
[376105246,1753864235701,-460.0,0.00018845,2]
[376105248,1753864235711,-374.90183988,0.00018845,2]
[376105250,1753864235720,-460.71479947,0.00018845,2]
[376105252,1753864235731,-460.0,0.00018845,2]
[376105254,1753864235740,-460.51197571,0.00018845,2]
[376105256,1753864235750,-460.0,0.00018845,2]
[376105258,1753864235759,-463.12551567,0.00018845,2]
[376105260,1753864235768,-460.0,0.00018845,2]
[376105262,1753864235778,-460.0,0.00018845,2]
[376105264,1753864235789,-465.64240097,0.00018845,2]
[376105266,1753864235798,-460.0,0.00018845,2]
[376105268,1753864235808,-460.0,0.00018845,2]
[376105270,1753864235817,-460.0,0.00018845,2]
[376105272,1753864235826,-460.0,0.00018845,2]
[376105274,1753864235841,-460.84438804,0.00018845,2]
[376105276,1753864235853,-460.0,0.00018845,2]
[376105278,1753864235862,-460.0,0.00018845,2]
[376105280,1753864235871,-460.0,0.00018845,2]
[376105282,1753864235881,-460.0,0.00018845,2]
[376105284,1753864235893,-460.0,0.00018845,2]
[376105286,1753864235903,-460.0,0.00018845,2]
[376105288,1753864235912,-460.0,0.00018845,2]
[376105290,1753864235922,-460.0,0.00018845,2]
[376105292,1753864235932,-460.0,0.00018845,2]
[376105294,1753864235942,-460.0,0.00018845,2]
[376105296,1753864235951,-500.0,0.00018845,2]
[376105298,1753864235960,-460.0,0.00018845,2]
[376105300,1753864235970,-460.0,0.00018845,2]
[376105302,1753864235980,-460.0,0.00018845,2]
[376105304,1753864235990,-500.0,0.00018845,2]
[376105306,1753864236001,-460.0,0.00018845,2]
[376105308,1753864236010,-460.0,0.00018845,2]
[376105310,1753864236019,-460.0,0.00018845,2]
[376105312,1753864236028,-460.0,0.00018845,2]
[376105314,1753864236044,-460.0,0.00018845,2]
[376105316,1753864236054,-460.0,0.00018845,2]
[376105318,1753864236063,-460.0,0.00018845,2]
[376105320,1753864236072,-460.0,0.00018845,2]
[376105321,1753864236085,-462.35061308,0.00018845,2]
[376105324,1753864236095,-460.0,0.00018845,2]
[376105325,1753864236105,-588.56426719,0.00018845,2]
[376105327,1753864236114,-2170.31,0.00018845,2]
[376105329,1753864236123,-572.48,0.00018845,2]
[376105331,1753864236134,-500.0,0.00018846,2]
[376105333,1753864236143,-460.0,0.00018846,2]
[376105335,1753864236153,-460.0,0.00018846,2]
[376105337,1753864236162,-460.0,0.00018846,2]
[376105339,1753864236171,-1080.78,0.00018846,2]
[376105341,1753864236180,-500.0,0.00018848,2]
[376105343,1753864236191,-460.0,0.00018849,2]
[376105345,1753864236201,-427.48179098,0.0001902,2]
[376105347,1753864236211,-708.17,0.00019116,2]
[376105349,1753864236220,-460.0,0.00019117,2]
[376105351,1753864236230,-157.66,0.00019117,2]
[376105353,1753864236240,-460.0,0.00019117,2]
[376105355,1753864236250,-1565.72,0.00019117,2]
[376105356,1753864236259,-460.0,0.00019117,2]
[376105358,1753864236268,-1115.58,0.00019117,2]
[376105361,1753864236279,-639.3,0.00019117,2]
[376105363,1753864236287,-172.12,0.00019117,2]
[376105365,1753864236297,-806.27,0.00019117,2]
[376105367,1753864236307,-460.0,0.00019117,2]
[376105368,1753864236317,-488.24,0.00019117,2]
[376105370,1753864236327,-460.0,0.00019117,2]
[376105372,1753864236339,-460.0,0.00019118,2]
[376105374,1753864236348,-460.0,0.00019118,2]
[376105376,1753864236357,-460.0,0.00019118,2]
[376105378,1753864236367,-500.0,0.00019118,2]
[376105380,1753864236376,-500.0,0.00019118,2]
[376105382,1753864236385,-500.0,0.00019118,2]
[376105384,1753864236395,-460.0,0.00019118,2]
[376105386,1753864236405,-408.57,0.00019118,2]
[376105388,1753864236415,-319.35,0.00019118,2]
[376105390,1753864236425,-460.0,0.00019119,2]
[376105392,1753864236434,-500.0,0.00019119,2]
[376105394,1753864236444,-2170.31,0.00019119,2]
[376105396,1753864236453,-572.48,0.00019119,2]
[376105398,1753864236463,-460.0,0.0001912,2]
[376105400,1753864236473,-460.0,0.0001912,2]
[376105402,1753864236482,-1080.78,0.0001912,2]
[376105404,1753864236492,-648.97899125,0.00019121,2]
[376105406,1753864236505,-500.0,0.00019122,2]
[376105408,1753864236516,-595.23,0.00019122,2]
[376105410,1753864236525,-460.0,0.00019122,2]
[376105412,1753864236535,-460.0,0.00019123,2]
[376105414,1753864236545,-200.0,0.00019219,15]
[376105416,1753864236554,-200.0,0.00019219,15]
[376105418,1753864236564,-200.0,0.00019219,15]
[376105420,1753864236574,-200.0,0.00019219,15]
[376105422,1753864236586,-200.0,0.00019219,15]
[376105424,1753864236595,-200.0,0.00019219,15]
[376105426,1753864236604,-200.0,0.00019219,15]
[376105428,1753864236614,-200.0,0.00019219,15]
[376105430,1753864236623,-200.0,0.00019219,15]
[376105432,1753864236632,-200.0,0.00019219,15]
[376105434,1753864236642,-200.0,0.00019219,15]
[376105436,1753864236651,-200.0,0.00019219,15]
[376105438,1753864236662,-200.0,0.00019219,15]
[376105440,1753864236672,-200.0,0.00019219,15]
[376105442,1753864236682,-200.0,0.00019219,15]
[376105444,1753864236691,-200.0,0.00019219,15]
[376105446,1753864236701,-29203.47022424,0.00019329,2]
[376105448,1753864236710,-708.17,0.0001939,2]
[376105450,1753864236719,-1565.72,0.00019391,2]
[376105452,1753864236728,-500.0,0.00019391,2]
[376105454,1753864236738,-460.0,0.00019391,2]
[376105456,1753864236747,-1115.58,0.00019391,2]
[376105458,1753864236757,-639.3,0.00019391,2]
[376105460,1753864236766,-806.27,0.00019391,2]
[376105462,1753864236775,-460.0,0.00019391,2]
[376105464,1753864236785,-460.0,0.00019391,2]
[376105466,1753864236794,-460.0,0.00019392,2]
[376105468,1753864236803,-460.0,0.00019392,2]
[376105470,1753864236813,-150.42,0.00019392,2]
[376105472,1753864236823,-500.0,0.00019392,2]
[376105474,1753864236835,-512.18,0.00019392,2]
[376105476,1753864236845,-2170.31,0.00019393,2]
[376105478,1753864236854,-572.48,0.00019393,2]
[376105480,1753864236863,-460.0,0.00019394,2]
[376105482,1753864236872,-425.99,0.00019394,2]
[376105483,1753864236885,-1080.78,0.00019394,2]
[376105486,1753864236901,-500.0,0.00019395,2]
[376105488,1753864236911,-460.0,0.00019397,2]
[376105490,1753864236922,-708.17,0.00019664,2]
[376105491,1753864236931,-1565.72,0.00019665,2]
[376105493,1753864236941,-460.0,0.00019665,2]
[376105495,1753864236950,-1115.58,0.00019665,2]
[376105497,1753864236959,-639.3,0.00019665,2]
[376105499,1753864236969,-806.27,0.00019665,2]
[376105501,1753864236979,-460.0,0.00019665,2]
[376105503,1753864236988,-460.0,0.00019665,2]
[376105505,1753864236998,-460.0,0.00019666,2]
[376105507,1753864237007,-367.5,0.00019666,2]
[376105509,1753864237016,-2170.31,0.00019667,2]
[376105511,1753864237025,-572.48,0.00019667,2]
[376105513,1753864237035,-460.0,0.00019668,2]
[376105515,1753864237047,-1080.78,0.00019668,2]
[376105517,1753864237057,-460.0,0.00019671,2]
[376105519,1753864237066,-500.0,0.00019673,2]
[376105521,1753864237075,-500.0,0.00019673,2]
[376105523,1753864237088,-500.0,0.00019673,2]
[376105525,1753864237097,-117529.89365423,0.000197,2]
[376105698,1753864238763,-462.53797899,0.00018841,2]
[376105700,1753864238772,-461.27550917,0.00018843,2]
[376105702,1753864238782,-460.0,0.00018846,2]
[376105704,1753864238791,-500.0,0.00019699,2]
[376105706,1753864238800,-500.0,0.00019699,2]
[376105708,1753864238810,-181.63910553,0.00019699,2]
[376105709,1753864238820,-246.52747732,0.00019699,2]
[376105712,1753864238830,-103.7645639,0.00019699,2]
[376105714,1753864238842,-67.30946472,0.00019699,2]